bitfinex/quotes_ETHUSD_20240719
["timestamp","ask_amount","ask_price","bid_price","bid_amount"]
[1721386034286,2.93471,3407.5,3406.8,2.93527]
[1721386034909,2.93471,3407.5,3406.9,2.93521]
[1721386035229,0.293427,3407.9,3406.4,10.26561]
[1721386035230,2.93497,3407.2,3406.4,10.26561]
[1721386035427,2.93497,3407.2,3406.5,2.93556]
[1721386035709,2.93473,3407.5,3406.6,2.93547]
[1721386035710,2.93484,3407.4,3406.6,2.93547]
[1721386036521,2.93484,3407.4,3406.6,5.30447]
[1721386036879,2.93487,3407.3,3406.6,5.30447]
[1721386037084,2.93487,3407.3,3406.6,2.93547]
[1721386039504,2.93506,3407.1,3406.4,10.26563]
[1721386040220,2.93546,3406.7,3405.9,2.93607]
[1721386040776,2.93546,3406.7,3405.8,2.3607]
[1721386040777,2.93554,3406.6,3405.8,2.3607]
[1721386040982,2.93559,3406.5,3405.8,2.3607]
[1721386041187,2.93559,3406.5,3405.8,5.29685]
[1721386041417,2.93546,3406.7,3405.9,2.93607]
[1721386041600,2.93524,3406.9,3405.9,0.82331]
[1721386041799,2.9353,3406.8,3406.0,2.93592]
[1721386042495,2.9353,3406.8,3406.1,2.93589]
[1721386044420,2.9354,3406.7,3406.0,2.93592]
[1721386045828,1.81687774,3407.3,3405.8,2.3607]
[1721386045987,1.81687774,3407.3,3405.3,7.33]
[1721386045988,2.9357,3406.4,3405.6,2.93633]
[1721386046193,2.93574,3406.3,3405.6,2.93633]
[1721386047836,2.93566,3406.4,3405.7,2.93623]
[1721386047989,2.93517,3407.0,3405.6,2.93633]
[1721386047990,2.93556,3406.5,3405.8,2.93615]
[1721386048421,2.93556,3406.5,3405.4,2.428]
[1721386048422,2.93584,3406.2,3405.4,5.36448]
[1721386049839,2.93591,3406.1,3405.4,5.36448]
[1721386052729,2.93599,3406.0,3405.4,2.428]
[1721386052928,2.93609,3405.9,3405.2,2.93667]
[1721386056713,5.87188,3406.1,3405.3,2.93659]
[1721386056913,2.93591,3406.1,3405.3,2.93659]
[1721386057735,2.93599,3406.0,3405.3,2.93659]
[1721386057910,2.93599,3406.0,3405.4,0.813195]
[1721386058247,2.93599,3406.0,3405.3,2.93659]
[1721386061328,2.93582,3406.2,3405.4,2.9365]
[1721386061529,2.93591,3406.1,3405.4,2.9365]
[1721386062075,2.93601,3406.0,3405.4,2.9365]
[1721386062724,2.93601,3406.0,3405.2,2.93661]
[1721386062955,2.93601,3406.0,3405.1,5.19533]
[1721386062956,2.93601,3406.0,3405.3,4.049784]
[1721386063663,2.93582,3406.2,3405.3,4.049784]
[1721386063871,2.93591,3406.1,3405.5,2.9364]
[1721386064169,2.93591,3406.1,3405.3,4.049724]
[1721386064523,2.93591,3406.1,3405.4,2.93651]
[1721386068331,5.36491,3406.1,3405.4,2.93651]
[1721386070049,5.36491,3406.1,3405.5,2.93642]
[1721386071137,5.36491,3406.1,3405.5,3.523727]
[1721386071358,2.93573,3406.3,3405.6,2.93633]
[1721386071749,2.93582,3406.2,3405.6,2.93633]
[1721386073853,2.93591,3406.1,3405.5,0.587307]
[1721386074033,2.93591,3406.1,3405.4,2.93643]
[1721386074458,2.93599,3406.0,3405.4,2.93643]
[1721386075736,5.8717,3406.2,3405.4,2.93643]
[1721386078753,2.93582,3406.2,3405.5,2.93641]
[1721386080640,1.22991774,3406.4,3405.7,2.2833]
[1721386080842,2.93558,3406.5,3405.8,0.521962]
[1721386081042,2.93565,3406.4,3405.8,2.93614]
[1721386081544,4.16549774,3406.5,3405.8,2.93614]
[1721386081740,2.93558,3406.5,3405.8,2.93614]
[1721386082279,4.16549774,3406.5,3405.8,2.93614]
[1721386083455,1.22991774,3406.4,3405.8,2.93614]
[1721386084384,1.22991774,3406.3,3405.8,2.93614]
[1721386085098,1.22991774,3406.4,3405.9,2.93607]
[1721386085282,1.22991774,3406.4,3405.7,5.21948]
[1721386085486,1.22991774,3406.2,3405.7,5.21948]
[1721386085890,1.22991774,3406.3,3405.7,5.21948]
[1721386086196,1.22991774,3406.3,3405.8,2.93616]
[1721386086989,1.22991774,3406.4,3405.8,2.93616]
[1721386087204,1.22991774,3406.3,3405.8,2.93616]
[1721386087363,1.22991774,3406.2,3405.8,2.93616]
[1721386087568,1.22991774,3406.3,3405.8,2.93616]
[1721386088374,1.54048074,3406.4,3405.8,2.93616]
[1721386088375,1.22991774,3406.2,3405.8,2.93616]
[1721386088576,1.22991774,3406.3,3405.8,2.93616]
[1721386089200,1.22991774,3406.2,3405.8,2.93616]
[1721386090001,4.47673265,3406.4,3405.8,2.93616]
[1721386090002,1.22991774,3406.3,3405.8,2.93616]
[1721386090359,1.22991774,3406.2,3405.8,2.93616]
[1721386091107,1.22991774,3406.3,3405.8,2.93616]
[1721386091572,1.22991774,3406.2,3405.8,2.93616]
[1721386091972,1.22991774,3406.1,3405.8,2.93616]
[1721386092322,1.22991774,3406.2,3405.8,2.93616]
[1721386099704,1.22991774,3406.3,3405.8,2.93616]
[1721386100481,1.22991774,3406.3,3405.8,0.87429463]
[1721386100685,1.22991774,3406.8,3406.4,2.93564]
[1721386100984,1.22991774,3406.9,3406.6,5.40586]
[1721386101202,1.22991774,3406.9,3406.4,2.93564]
[1721386102226,1.22991774,3407.0,3406.4,2.93564]
[1721386102441,1.22991774,3406.9,3406.4,2.93564]
[1721386102613,1.22991774,3407.0,3406.4,2.93564]
[1721386102783,2.93531,3406.8,3406.0,2.93592]
[1721386102980,1.22991774,3407.0,3405.8,7.33]
[1721386102981,2.93571,3406.4,3405.8,7.33]
[1721386103333,1.22991774,3406.3,3405.8,7.33]
[1721386103887,4.16562774,3406.4,3405.8,7.33]
[1721386104227,2.93571,3406.4,3405.8,10.26616]
[1721386104432,1.22991774,3406.5,3405.8,10.26616]
[1721386104926,4.16548774,3406.5,3405.8,10.26616]
[1721386105408,1.22991774,3406.4,3405.8,7.33]
[1721386106183,1.22991774,3406.4,3405.8,10.26615]
[1721386106486,1.22991774,3406.4,3405.8,2.93615]
[1721386107614,1.22991774,3406.4,3405.6,5.34796]
[1721386107615,1.22991774,3406.3,3405.6,5.34796]
[1721386107885,1.22991774,3406.3,3405.7,2.93624]
[1721386108122,4.16556774,3406.4,3405.7,2.93624]
[1721386110429,1.22991774,3406.3,3405.7,2.93624]
[1721386111008,4.16556774,3406.4,3405.8,2.93616]
[1721386111547,1.22991774,3406.4,3405.8,2.93616]
[1721386111703,1.22991774,3406.4,3406.0,5.39603]
[1721386111886,1.22991774,3406.5,3406.0,5.39603]
[1721386112227,1.22991774,3406.7,3406.1,2.93584]
[1721386112388,1.22991774,3406.8,3406.2,0.92731265]
[1721386112584,1.22991774,3406.8,3406.0,2.4601]
[1721386112585,1.22991774,3406.9,3406.1,2.93587]
[1721386113026,1.22991774,3406.7,3406.1,2.93587]
[1721386113390,4.47588109,3406.9,3406.1,2.93587]
[1721386113391,1.22991774,3406.8,3406.1,2.93587]
[1721386113593,4.47588109,3406.9,3406.0,2.4601]
[1721386113594,2.93555,3406.6,3406.0,2.4601]
[1721386114336,1.22991774,3406.7,3406.0,5.39609]
[1721386114922,4.16537774,3406.7,3406.0,5.39609]
[1721386116027,4.16537774,3406.7,3406.1,0.833225]
[1721386116809,4.16537774,3406.7,3406.0,5.39609]
[1721386117008,1.54043224,3406.8,3404.8,4.9771266]
[1721386117009,2.93582,3406.2,3405.5,2.4015]
[1721386117209,1.22991774,3406.0,3405.5,2.4015]
[1721386117815,1.22991774,3406.1,3405.5,5.3379]
[1721386118014,1.22991774,3406.2,3405.5,5.3379]
[1721386118550,4.16570774,3406.3,3405.6,2.93632]
[1721386119627,5.26826197,3406.3,3405.6,2.93632]
[1721386120296,1.22991774,3406.2,3405.6,2.93632]
[1721386120627,1.22991774,3406.2,3405.5,2.4015]
[1721386120628,1.22991774,3406.3,3405.7,2.93625]
[1721386120806,1.22991774,3406.2,3405.7,2.93625]
[1721386122630,2.93574,3406.3,3405.7,2.93625]
[1721386122631,4.16565774,3406.3,3405.7,2.93625]
[1721386123217,1.22991774,3406.3,3405.7,2.93625]
[1721386124796,1.22991774,3406.3,3405.8,2.9361]
[1721386124992,1.22991774,3406.4,3405.8,2.9361]
[1721386125197,1.22991774,3406.4,3405.9,2.93607]
[1721386125501,1.22991774,3406.4,3406.0,2.272]
[1721386126522,1.22991774,3406.4,3406.0,5.20798]
[1721386127142,1.54094884,3406.6,3406.0,5.20798]
[1721386127143,1.22991774,3406.5,3406.0,5.20798]
[1721386128438,1.22991774,3406.5,3406.0,2.272]
[1721386128683,4.73613833,3406.5,3405.7,5.25942]
[1721386128979,1.22991774,3406.4,3405.7,5.25942]
[1721386129376,1.22991774,3406.4,3405.8,2.93615]
[1721386130407,2.93599,3406.1,3405.2,10.26668]
[1721386130627,1.22991774,3406.1,3405.5,2.93642]
[1721386130778,1.22991774,3406.1,3405.5,5.22652]
[1721386131679,1.22991774,3406.1,3405.6,2.93633]
[1721386132009,1.22991774,3406.2,3405.6,2.93633]
[1721386132679,1.22991774,3406.2,3405.7,2.93619]
[1721386132887,1.22991774,3406.3,3405.6,0.816285]
[1721386133313,1.22991774,3406.3,3405.7,2.93624]
[1721386133621,1.22991774,3406.3,3405.8,2.93616]
[1721386133966,1.22991774,3406.3,3405.6,3.752555]
[1721386134170,1.22991774,3406.3,3405.7,2.93624]
[1721386136272,1.22991774,3406.3,3405.7,3.8341405]
[1721386136609,1.22991774,3406.3,3405.8,2.93616]
[1721386138690,1.22991774,3406.4,3405.9,2.93606]
[1721386140013,4.47669552,3406.5,3405.7,0.8979005]
[1721386140014,1.22991774,3406.3,3405.7,2.93618]
[1721386140311,1.22991774,3406.3,3405.6,2.93631]
[1721386140312,1.22991774,3406.3,3405.8,2.93614]
[1721386141422,1.22991774,3406.3,3405.8,3.67291918]
[1721386141881,1.22991774,3406.4,3405.8,3.67291918]
[1721386142081,1.22991774,3406.3,3405.8,2.93614]
[1721386143323,4.47666751,3406.5,3405.8,2.93614]
[1721386143324,1.22991774,3406.4,3405.8,2.93614]
[1721386143701,1.22991774,3406.3,3405.8,2.93614]
[1721386146273,1.22991774,3406.3,3405.9,2.93601]
[1721386146529,1.22991774,3406.4,3406.0,2.4837]
[1721386146732,1.22991774,3406.3,3406.0,2.4837]
[1721386147238,2.93548,3406.6,3406.0,2.4837]
[1721386147239,1.22991774,3406.4,3406.0,2.4837]
[1721386147391,1.22991774,3406.4,3406.1,2.9359]
[1721386147597,1.22991774,3406.4,3406.1,3.771461]
[1721386148224,1.22991774,3406.6,3406.1,3.771461]
[1721386148444,1.22991774,3406.7,3406.1,3.771461]
[1721386148592,1.22991774,3406.7,3406.2,2.9358]
[1721386148793,1.22991774,3406.8,3406.3,2.93565]
[1721386149039,1.22991774,3406.7,3406.4,2.93561]
[1721386149204,1.22991774,3406.8,3406.4,2.93561]
[1721386150108,1.22991774,3406.8,3406.5,2.93551]
[1721386150322,2.4539,3407.2,3406.5,2.93551]
[1721386150323,1.22991774,3406.9,3406.5,2.93551]
[1721386150829,1.22991774,3406.9,3406.3,2.93569]
[1721386151034,1.22991774,3406.9,3406.5,2.9355]
[1721386151329,1.22991774,3407.0,3406.5,2.9355]
[1721386152102,1.22991774,3407.0,3406.3,5.87136]
[1721386152439,4.16516774,3406.9,3406.1,2.93584]
[1721386152736,1.22991774,3406.7,3406.2,2.93581]
[1721386153047,6.66380774,3406.7,3406.0,2.93593]
[1721386153246,1.22991774,3406.6,3406.0,2.93593]
[1721386155033,1.22991774,3406.6,3406.1,2.93588]
[1721386155341,1.22991774,3406.6,3405.9,2.93601]
[1721386155699,4.16539774,3406.6,3405.9,2.93601]
[1721386155909,1.22991774,3406.5,3405.9,2.93601]
[1721386156114,1.22991774,3406.6,3406.0,2.93595]
[1721386156412,1.88208942,3406.6,3406.0,2.93595]
[1721386156611,1.22991774,3406.5,3406.0,2.93595]
[1721386157512,1.22991774,3406.6,3406.0,2.93595]
[1721386158040,4.16540774,3406.6,3406.0,2.93595]
[1721386158534,1.22991774,3406.5,3406.0,2.93595]
[1721386158898,1.22991774,3406.5,3406.1,2.9359]
[1721386159104,1.22991774,3406.6,3406.1,2.9359]
[1721386160409,1.22991774,3406.6,3405.8,2.93613]
[1721386160906,2.93539,3406.7,3406.0,2.93593]
[1721386161124,1.22991774,3406.8,3406.1,2.9359]
[1721386161326,4.16523774,3406.8,3406.2,2.4515]
[1721386161735,1.22991774,3406.7,3406.2,2.4515]
[1721386162521,4.16523774,3406.8,3406.2,2.4515]
[1721386163323,4.16523774,3406.8,3406.2,5.38731]
[1721386163501,4.16523774,3406.8,3406.2,5.38631]
[1721386163707,4.16523774,3406.8,3406.3,2.93568]
[1721386163708,1.22991774,3406.8,3406.3,2.93568]
[1721386163933,2.93499,3407.2,3406.5,2.93551]
[1721386163934,1.22991774,3407.0,3406.5,2.93551]
[1721386168661,1.22991774,3407.0,3406.3,2.93567]
[1721386169153,1.22991774,3407.0,3406.4,2.93562]
[1721386170226,4.16504774,3407.0,3406.2,5.38415]
[1721386170420,2.93531,3406.8,3405.9,5.42564]
[1721386170660,2.93531,3406.8,3406.0,2.93598]
[1721386170864,4.16522774,3406.8,3406.0,2.93598]
[1721386171179,2.93539,3406.7,3405.9,2.4896]
[1721386171468,4.16547774,3406.5,3405.8,2.9361]
[1721386171621,4.03983702,3406.5,3405.8,2.9361]
[1721386171818,4.16557774,3406.4,3405.7,7.33]
[1721386172058,2.93587,3406.2,3405.3,2.4301]
[1721386172235,4.16578774,3406.2,3405.3,2.4301]
[1721386172443,4.16578774,3406.2,3404.8,1.53183864]
[1721386172656,1.22991774,3406.1,3404.9,5.22821897]
[1721386172837,2.93648,3405.5,3404.7,10.26706]
[1721386173038,2.93634,3405.6,3404.5,5.19966]
[1721386173240,2.93656,3405.4,3404.6,2.93719]
[1721386173663,2.93642,3405.5,3404.7,2.9371]
[1721386176884,2.93625,3405.7,3404.9,2.93694]
[1721386177852,2.93642,3405.5,3404.7,3.750768]
[1721386178160,2.93628,3405.7,3404.7,0.813678]
[1721386178344,2.93613,3405.9,3405.0,2.9368]
[1721386180591,4.16588774,3406.1,3405.0,2.9368]
[1721386180886,3.85702772,3406.2,3395.9,0.01271451]
[1721386180887,5.08694546,3406.2,3405.4,2.9365]
[1721386181050,5.33755,3406.3,3405.5,2.93641]
[1721386182228,2.93562,3406.5,3405.7,2.9362]
[1721386183062,2.4354,3406.6,3405.8,2.93614]
[1721386183269,2.93539,3406.7,3405.8,2.93614]
[1721386183885,2.93539,3406.7,3405.9,2.93606]
[1721386184205,0.94829477,3406.6,3405.9,2.93606]
[1721386185205,6.54755774,3406.9,3405.5,0.828971]
[1721386185206,2.9353,3406.8,3406.0,2.93598]
[1721386185978,2.9353,3406.8,3406.0,5.38438]
[1721386186296,9.8969,3407.3,3406.0,5.38438]
[1721386186297,4.16509774,3407.0,3406.2,2.9358]
[1721386186902,2.93518,3407.0,3406.2,2.9358]
[1721386187063,4.03961126,3407.0,3406.2,2.9358]
[1721386187467,2.93522,3406.9,3406.2,2.9358]
[1721386188378,1.10443126,3407.0,3406.2,2.9358]
[1721386188582,2.93509,3407.1,3406.2,2.9358]
[1721386189593,1.22991774,3407.2,3406.4,2.93558]
[1721386189791,2.93498,3407.2,3406.4,2.93558]
[1721386192828,2.93505,3407.1,3406.4,2.93558]
[1721386192984,2.93505,3407.1,3406.2,2.93575]
[1721386193176,0.65718677,3407.0,3406.2,2.93575]
[1721386193381,0.65718677,3407.0,3406.3,2.93573]
[1721386195921,2.93533,3406.8,3406.1,2.9359]
[1721386198022,2.93533,3406.8,3406.0,2.4484]
[1721386198186,5.30381,3406.7,3405.9,2.93606]
[1721386198388,6.07956645,3406.7,3406.0,0.55]
[1721386200386,6.07956645,3406.7,3406.0,3.48598]
[1721386202282,5.30381,3406.7,3406.0,3.48598]
[1721386203313,2.93548,3406.6,3406.0,0.55]
[1721386203513,2.93548,3406.6,3405.9,0.55]
[1721386204139,2.3684,3406.7,3405.4,2.93651]
[1721386204140,2.93568,3406.4,3405.4,2.93651]
[1721386204319,2.93587,3406.2,3405.4,2.93651]
[1721386204698,2.93587,3406.2,3405.5,2.93641]
[1721386205444,2.93607,3406.0,3405.2,2.93665]
[1721386205744,2.93609,3405.9,3405.2,2.93665]
[1721386206240,3.765136,3405.9,3405.2,2.93665]
[1721386206403,0.829046,3405.9,3405.2,2.93665]
[1721386207099,2.4183,3406.1,3405.2,2.93665]
[1721386207342,2.936,3406.0,3405.3,2.93657]
[1721386209101,2.93585,3406.2,3405.4,2.93647]
[1721386209523,2.93591,3406.1,3405.4,2.93647]
[1721386210517,2.93599,3406.0,3405.2,2.93662]
[1721386210714,2.93599,3406.0,3405.3,0.55]
[1721386213423,2.93627,3405.7,3405.1,2.3428]
[1721386215074,2.93623,3405.8,3405.1,2.3428]
[1721386216965,2.93625,3405.7,3405.1,2.3428]
[1721386217663,2.936,3406.0,3405.1,2.3428]
[1721386217822,2.93617,3405.8,3405.1,2.3428]
[1721386218322,2.93617,3405.8,3405.1,5.27956]
[1721386218628,1.22991774,3406.5,3405.8,2.93612]
[1721386218840,4.16530774,3406.7,3405.9,2.93602]
[1721386219038,2.93539,3406.7,3405.9,2.93602]
[1721386219438,2.93548,3406.6,3405.9,2.93602]
[1721386219666,2.93548,3406.6,3405.7,5.33254]
[1721386219831,3.87771077,3406.6,3405.8,0.55]
[1721386220037,1.22991774,3406.8,3405.8,3.48614]
[1721386220380,4.47252647,3407.0,3406.1,2.93589]
[1721386220381,1.22991774,3406.9,3406.1,2.93589]
[1721386220666,1.22991774,3406.9,3406.0,2.93593]
[1721386220667,4.16506774,3407.0,3406.2,2.93576]
[1721386220865,2.93515,3407.0,3406.1,2.4915]
[1721386221024,4.16489774,3407.2,3406.4,2.93564]
[1721386221230,5.27403516,3407.2,3406.4,2.93564]
[1721386221480,2.93504,3407.1,3406.2,3.48575]
[1721386221643,2.93504,3407.1,3406.3,2.93572]
[1721386222164,2.33905516,3407.2,3406.3,2.93572]
[1721386222464,5.27401516,3407.2,3406.3,2.93572]
[1721386223162,2.33905516,3407.2,3406.4,2.93564]
[1721386224267,1.10913742,3407.2,3406.4,2.93564]
[1721386224468,4.16479774,3407.3,3406.5,2.93556]
[1721386224469,1.22991774,3407.3,3406.5,2.93556]
[1721386224685,2.9348,3407.4,3406.5,2.93556]
[1721386224960,2.93487,3407.3,3406.4,0.836304]
[1721386226550,2.93487,3407.3,3406.5,2.93555]
[1721386227455,2.93471,3407.5,3406.7,2.4574]
[1721386228344,2.93455,3407.7,3406.7,5.39272]
[1721386228872,2.4606,3407.8,3406.9,2.9352]
[1721386229084,5.93445,3407.8,3406.9,2.9352]
[1721386229246,2.93445,3407.8,3406.9,2.9352]
[1721386229575,0.70987077,3407.7,3407.0,2.93507]
[1721386229734,0.70987077,3407.7,3406.8,2.93527]
[1721386233289,0.70987077,3407.7,3406.9,2.93521]
[1721386233951,2.3004,3408.1,3407.2,2.93495]
[1721386234358,8.2346,3408.1,3407.2,2.93495]
[1721386234547,5.3004,3408.1,3407.3,2.441]
[1721386234758,5.93418,3408.1,3407.3,2.441]
[1721386234961,7.17912377,3408.1,3407.3,2.441]
[1721386235947,2.93402,3408.3,3407.3,2.441]
[1721386236388,2.9341,3408.2,3407.3,2.441]
[1721386236559,5.28533,3408.4,3407.3,5.37582]
[1721386236981,2.93401,3408.3,3407.3,5.37582]
[1721386237456,2.93401,3408.3,3407.3,6.206912]
[1721386239664,2.93401,3408.3,3407.3,3.272092]
[1721386239871,2.93401,3408.3,3407.3,2.441]
[1721386243085,2.9341,3408.2,3407.3,2.441]
[1721386254283,2.93428,3408.0,3407.3,2.441]
[1721386255190,2.93437,3407.9,3407.3,2.441]
[1721386255521,2.93527,3406.9,3406.6,7.33]
[1721386255676,2.93527,3406.9,3406.2,2.4008]
[1721386255883,2.93544,3406.7,3406.2,2.4008]
[1721386256376,2.3481,3407.3,3405.6,2.256]
[1721386256377,2.93588,3406.2,3405.6,2.256]
[1721386256586,2.9361,3405.9,3405.0,2.256]
[1721386256889,2.93644,3405.5,3404.5,9.5992]
[1721386257088,2.93644,3405.5,3404.5,2.2692]
[1721386257429,2.93651,3405.4,3404.5,2.2692]
[1721386257778,2.93634,3405.6,3404.5,2.2692]
[1721386258375,0.29361,3405.8,3404.5,5.20642]
[1721386258580,2.93583,3406.2,3404.6,3.457832]
[1721386259229,2.93566,3406.4,3404.9,2.93687]
[1721386259377,2.93566,3406.4,3405.2,2.93668]
[1721386260528,2.9354,3406.7,3405.3,2.93655]
[1721386260681,0.29354,3406.6,3405.3,3.48655]
[1721386260880,0.29354,3406.6,3405.3,2.93655]
[1721386261215,3.22906,3406.6,3405.5,2.9364]
[1721386261427,2.93557,3406.5,3405.3,2.93659]
[1721386262191,2.93557,3406.5,3405.4,2.93649]
[1721386262406,2.93557,3406.5,3405.5,0.293649]
[1721386262982,2.93498,3407.2,3405.6,2.3831]
[1721386263286,2.93406,3408.3,3406.4,2.93564]
[1721386263287,2.93462,3407.6,3406.4,2.93564]
[1721386263637,3.2574248,3407.6,3406.5,2.676664]
[1721386263788,3.2574248,3407.6,3406.5,2.73536699]
[1721386263983,3.2574248,3407.6,3406.5,2.676664]
[1721386264179,3.2574248,3407.6,3406.5,2.3831]
[1721386264400,2.93488,3407.3,3406.5,2.3831]
[1721386265146,2.9347,3407.5,3406.5,2.3831]
[1721386265322,2.93479,3407.4,3406.5,2.3831]
[1721386267121,2.93497,3407.2,3406.5,2.3831]
[1721386268499,2.93484,3407.4,3406.5,2.3831]
[1721386269900,0.32574248,3407.5,3406.5,2.3831]
[1721386270148,2.9347,3407.5,3406.5,2.3831]
[1721386270332,2.9348,3407.4,3406.5,2.3831]
[1721386271291,2.93455,3407.7,3406.5,2.4418032]
[1721386271508,2.93465,3407.6,3406.5,2.3831]
[1721386272126,2.93465,3407.6,3406.5,5.31864]
[1721386272313,2.93465,3407.6,3406.6,0.825423]
[1721386272668,2.93445,3407.8,3406.6,0.8841243]
[1721386272814,5.93453,3407.7,3406.6,0.825423]
[1721386273018,2.93453,3407.7,3406.6,0.825423]
[1721386273847,2.93472,3407.5,3406.6,0.825423]
[1721386275210,2.93472,3407.5,3406.7,0.6144153]
[1721386276152,2.93453,3407.7,3406.7,0.6144153]
[1721386276851,2.93468,3407.6,3406.7,0.6144153]
[1721386277056,3.293428,3407.9,3406.5,2.3831]
[1721386277219,2.93479,3407.4,3406.5,2.3831]
[1721386278246,2.93462,3407.6,3406.5,2.3831]
[1721386278453,2.93462,3407.6,3406.5,5.31866]
[1721386282766,2.93454,3407.7,3406.5,2.3831]
[1721386282965,2.93479,3407.4,3406.5,2.3831]
[1721386283381,3.2574468,3407.6,3406.5,2.3831]
[1721386284482,2.93471,3407.5,3406.5,2.3831]
[1721386285480,0.3227968,3407.6,3406.5,5.31863]
[1721386286990,3.2574168,3407.6,3406.5,5.31863]
[1721386287160,3.2574168,3407.6,3406.5,6.144065]
[1721386288363,3.2574068,3407.6,3406.5,2.3831]
[1721386288579,2.93479,3407.4,3406.5,2.3831]
[1721386289251,2.93504,3407.2,3406.5,2.3831]
[1721386293457,2.93479,3407.4,3406.5,2.3831]
[1721386293653,2.93463,3407.6,3406.7,2.4952]
[1721386295093,2.93447,3407.8,3406.7,2.4952]
[1721386295459,2.93447,3407.8,3406.7,5.43057]
[1721386296654,2.93447,3407.8,3406.8,2.9353]
[1721386296867,2.93454,3407.7,3406.9,0.566881]
[1721386299256,2.93436,3407.9,3406.9,0.566881]
[1721386299457,2.93436,3407.9,3407.0,2.3198]
[1721386301803,2.93445,3407.8,3407.0,2.3198]
[1721386302859,2.93453,3407.7,3407.0,2.3198]
[1721386303059,2.93462,3407.6,3407.0,2.3198]
[1721386304276,2.9347,3407.5,3407.0,2.3198]
[1721386306477,1.22991774,3407.7,3407.0,2.3198]
[1721386306681,2.93462,3407.6,3407.1,0.23198]
[1721386306883,2.93462,3407.6,3407.0,2.3198]
[1721386307198,4.16453774,3407.6,3407.0,2.3198]
[1721386308193,1.22991774,3407.5,3407.0,2.3198]
[1721386308779,4.16462774,3407.5,3407.0,2.3198]
[1721386309200,2.93488,3407.3,3407.0,2.3198]
[1721386309402,4.16479774,3407.3,3406.3,2.3263]
[1721386309693,1.22991774,3407.2,3406.3,2.3263]
[1721386310394,1.22991774,3407.2,3406.3,5.26203]
[1721386310568,4.16479774,3407.3,3406.3,5.26203]
[1721386310768,4.16479774,3407.3,3406.4,0.88080911]
[1721386310972,4.16479774,3407.3,3406.5,2.4858]
[1721386311205,2.93513,3407.0,3406.5,2.4858]
[1721386311405,4.16504774,3407.0,3406.5,2.4858]
[1721386312404,1.22991774,3406.9,3406.5,2.4858]
[1721386312612,4.16504774,3407.0,3406.5,2.4858]
[1721386312814,2.93523,3406.9,3406.5,2.4858]
[1721386312973,4.16514774,3406.9,3406.5,2.4858]
[1721386314205,2.93579,3406.3,3406.1,2.4298]
[1721386314378,2.93547,3406.6,3405.6,2.95728589]
[1721386314379,2.93589,3406.2,3405.6,2.4298]
[1721386314586,2.93599,3406.0,3405.6,2.4298]
[1721386314781,4.16590774,3406.0,3405.6,2.4298]
[1721386315008,1.22991774,3405.9,3405.6,2.4298]
[1721386315229,2.93599,3406.0,3405.6,2.4298]
[1721386316605,4.16580774,3406.2,3405.6,2.4298]
[1721386317241,2.93589,3406.2,3405.6,2.4298]
[1721386317924,2.9359,3406.1,3405.6,2.4298]
[1721386318707,2.93574,3406.3,3405.6,2.4298]
[1721386318907,2.93586,3406.2,3405.6,2.4298]
[1721386319102,2.93591,3406.1,3405.6,2.4298]
[1721386320721,2.93601,3406.0,3405.6,2.4298]
[1721386321615,1.22991774,3406.5,3405.6,2.4298]
[1721386321616,2.93609,3405.9,3405.6,2.4298]
[1721386321816,2.93625,3405.7,3404.8,2.4807]
[1721386322140,2.9366,3405.3,3404.8,2.4807]
[1721386323931,5.87291,3405.5,3404.8,2.4807]
[1721386324338,2.93643,3405.5,3404.8,2.4807]
[1721386324953,2.93665,3405.3,3404.8,2.4807]
[1721386325467,2.93625,3405.7,3404.8,2.72877]
[1721386325933,2.93634,3405.6,3404.8,2.72877]
[1721386326119,3.0,3406.4,3404.8,2.72877]
[1721386326120,2.93643,3405.5,3404.8,2.72877]
[1721386326329,2.93591,3406.1,3404.8,2.72877]
[1721386326554,2.93651,3405.4,3404.8,2.4807]
[1721386327556,2.93659,3405.3,3404.8,2.4807]
[1721386328435,2.93677,3405.1,3404.4,2.4485]
[1721386329075,2.93691,3405.0,3404.4,2.4485]
[1721386329278,2.93708,3404.8,3404.4,2.4485]
[1721386330765,2.93694,3404.9,3404.4,2.4485]
[1721386331361,2.93671,3405.2,3404.4,2.4485]
[1721386331558,2.93644,3405.5,3404.4,2.4485]
[1721386331944,4.7,3405.9,3404.4,2.4485]
[1721386332180,2.93683,3405.1,3404.4,2.4485]
[1721386332333,2.93667,3405.3,3404.4,2.4485]
[1721386332533,2.93626,3405.7,3404.4,2.4485]
[1721386332769,2.93643,3405.5,3404.6,2.2736]
[1721386333139,2.9361,3405.9,3404.7,2.3491]
[1721386333341,2.9361,3405.9,3404.8,0.23491]
[1721386334574,2.93587,3406.2,3404.9,2.3021]
[1721386334786,2.93587,3406.2,3405.2,2.3021]
[1721386335389,2.93565,3406.4,3405.2,2.3021]
[1721386335598,2.93555,3406.6,3405.6,2.3755]
[1721386337266,2.93556,3406.5,3405.6,2.3755]
[1721386337984,2.93565,3406.4,3405.6,2.3755]
[1721386338975,2.93559,3406.5,3405.6,2.3755]
[1721386339217,2.93559,3406.5,3405.6,3.22338]
[1721386340291,2.93565,3406.4,3405.6,3.22338]
[1721386341191,2.93553,3406.6,3405.6,3.22338]
[1721386341389,3.61537663,3406.7,3405.6,3.22338]
[1721386341614,3.0,3406.6,3405.7,0.909624]
[1721386342120,3.79936626,3406.9,3405.7,0.9683422]
[1721386342321,2.93522,3406.9,3405.8,0.05871726]
[1721386342985,2.93532,3406.8,3405.8,0.05871726]
[1721386343233,2.93532,3406.8,3405.7,3.845874]
[1721386343407,2.93532,3406.8,3405.7,3.90459132]
[1721386343581,2.93532,3406.8,3405.7,3.845874]
[1721386343789,2.93532,3406.8,3405.8,0.9157794]
[1721386344115,2.93511,3407.1,3405.9,5.34092]